[Event "VII Lorca Open 2018"]
[Site "Lorca"]
[Date "2018.12.29"]
[Round "7"]
[White "Terbe, Julianna"]
[Black "Gascon Del Nogal, Jose Rafael"]
[Result "0-1"]
[ECO "C55"]
[WhiteElo "2272"]
[BlackElo "2484"]
[Annotator "ChessBase"]
[PlyCount "45"]
[EventDate "2018.12.26"]
[EventType "swiss"]
[EventCountry "ESP"]
[SourceTitle "playchess.com"]
[Source "ChessBase"]
[SourceQuality "1"]
[TimeControl "5400+30"]

1. e4 {[%emt 0:00:00]} e5 {[%emt 0:01:17]} 2. Nf3 {[%emt 0:00:00]} Nc6 {[%emt 0:00:05]} 3. Bc4 {[%emt 0:00:06]} Nf6 {[%emt 0:00:18]} 4. d3 {[%emt 0:00:07]} Be7 {[%emt 0:00:12]} 5. O-O {[%emt 0:00:45]} O-O {[%emt 0:00:04]} 6. Re1 {[%emt 0:00:12]} d6 {[%emt 0:00:05]} 7. a4 {[%emt 0:00:49]} Kh8 {[%emt 0:00:06]} 8. a5 {[%emt 0:01:06]} a6 {[%emt 0:00:06]} 9. c3 {[%emt 0:00:16]} Ng8 {[%emt 0:00:58]} 10. d4 {[%emt 0:00:31]} Bg4 {[%emt 0:00:15]} 11. dxe5 {[%emt 0:03:18]} Nxe5 {[%emt 0:00:23]} 12. Be2 {[%emt 0:00:10]} Bxf3 {[%emt 0:00:03]} 13. Bxf3 {[%emt 0:00:10]} Bg5 {[%emt 0:00:02]} 14. Be2 {[%emt 0:09:51]} Bxc1 {[%emt 0:01:47]} 15. Qxc1 {[%emt 0:00:05]} Qh4 {[%emt 0:03:51]} 16. Qe3 {[%emt 0:01:45]} Nf6 {[%emt 0:03:22]} 17. Nd2 {[%emt 0:02:35]} Rfe8 {[%emt 0:10:47]} 18. Nf3 {[%emt 0:10:03]} Nxf3+ 19. Bxf3 {[%emt 0:00:10]} Re5 {[%emt 0:01:33]} 20. g3 {[%emt 0:03:19]} Qh3 {[%emt 0:01:11]} 21. Bg2 {[%emt 0:00:42]} Qh5 {[%emt 0:01:40]} 22. Bf3 {[%emt 0:06:27]} Qg6 {[%emt 0:01:23]} 23. Bg2 {[%emt 0:10:47]} 0-1

[Event "VII Lorca Open 2018"]
[Site "Lorca"]
[Date "2018.12.29"]
[Round "7"]
[White "Bharath Subramaniyam H"]
[Black "Luch, Michal"]
[Result "0-1"]
[ECO "B22"]
[WhiteElo "2234"]
[BlackElo "2360"]
[Annotator "ChessBase"]
[PlyCount "53"]
[EventDate "2018.12.26"]
[EventType "swiss"]
[EventCountry "ESP"]
[SourceTitle "playchess.com"]
[Source "ChessBase"]
[SourceQuality "1"]
[TimeControl "5400+30"]

1. e4 {[%emt 0:00:00]} c5 {[%emt 0:00:00]} 2. c3 {[%emt 0:00:00]} Nf6 {[%emt 0:00:00]} 3. e5 {[%emt 0:00:00]} Nd5 {[%emt 0:00:00]} 4. Nf3 {[%emt 0:00:01]} e6 {[%emt 0:00:00]} 5. Bc4 {[%emt 0:01:19]} b6 {[%emt 0:02:33]} 6. Bxd5 {[%emt 0:07:33]} exd5 {[%emt 0:00:01]} 7. d4 {[%emt 0:00:10]} d6 {[%emt 0:03:05]} 8. O-O {[%emt 0:03:11]} Be7 {[%emt 0:00:29]} 9. Bf4 {[%emt 0:02:41]} O-O {[%emt 0:01:41]} 10. Na3 {[%emt 0:01:56]} dxe5 {[%emt 0:11:13]} 11. Nxe5 {[%emt 0:00:39]} cxd4 {[%emt 0:00:40]} 12. Qxd4 {[%emt 0:01:04]} Bxa3 {[%emt 0:01:30]} 13. bxa3 {[%emt 0:00:02]} Be6 {[%emt 0:00:29]} 14. Rfe1 {[%emt 0:04:16]} Nd7 {[%emt 0:02:04]} 15. Nc6 {[%emt 0:08:14]} Qf6 {[%emt 0:03:06]} 16. Qd2 {[%emt 0:00:16]} h6 {[%emt 0:03:11]} 17. Bd6 {[%emt 0:15:45]} Rfe8 {[%emt 0:00:23]} 18. Re3 {[%emt 0:01:19]} Rac8 {[%emt 0:05:03]} 19. Rf3 {[%emt 0:02:27]} Qxf3 {[%emt 0:00:12]} 20. Ne7+ {[%emt 0:00:26]} Rxe7 {[%emt 0:00:05]} 21. gxf3 {[%emt 0:00:01]} Ree8 {[%emt 0:00:02]} 22. Kg2 {[%emt 0:01:09]} Rc6 {[%emt 0:13:03]} 23. Bf4 {[%emt 0:01:59]} Rec8 {[%emt 0:00:08]} 24. Rc1 {[%emt 0:00:14]} Rc4 {[%emt 0:00:07]} 25. Be3 {[%emt 0:01:20]} Ne5 {[%emt 0:00:08]} 26. f4 {[%emt 0:07:02]} Ng6 {[%emt 0:01:16]} 27. Qb2 {[%emt 0:07:54]} 0-1

[Event "VII Lorca Open 2018"]
[Site "Lorca"]
[Date "2018.12.29"]
[Round "7"]
[White "Salvador Lopez, Daniel"]
[Black "Morozov, Nichita"]
[Result "1/2-1/2"]
[ECO "A45"]
[WhiteElo "2177"]
[BlackElo "2439"]
[Annotator "NA"]
[PlyCount "54"]
[EventDate "2018.12.26"]
[EventType "swiss"]
[EventCountry "ESP"]
[SourceTitle "playchess.com"]
[Source "ChessBase"]
[SourceQuality "1"]
[TimeControl "5400+30"]

1. d4 {[%emt 0:06:16]} Nf6 {[%emt 0:00:00]} 2. Bg5 {[%emt 0:00:26]} e6 {[%emt 0:01:21]} 3. Nd2 {[%emt 0:00:18]} h6 {[%emt 0:00:11]} 4. Bh4 {[%emt 0:00:58]} Nc6 {[%emt 0:06:12]} 5. e3 {[%emt 0:00:51]} d6 {[%emt 0:00:28]} 6. Ngf3 {[%emt 0:03:16]} g5 {[%emt 0:00:08]} 7. Bg3 {[%emt 0:00:17]} Nh5 {[%emt 0:00:04]} 8. Ne5 {[%emt 0:07:04]} Nxg3 {[%emt 0:00:10]} 9. Nxc6 bxc6 {[%emt 0:00:02]} 10. hxg3 {[%emt 0:00:23]} Bg7 {[%emt 0:00:03]} 11. Qf3 {[%emt 0:01:21]} Bb7 {[%emt 0:00:21]} 12. Ba6 {[%emt 0:01:09]} Qc8 {[%emt 0:00:04]} 13. Bxb7 Qxb7 {[%emt 0:00:02]} 14. O-O {[%emt 0:03:59]} O-O {[%emt 0:00:15]} 15. g4 {[%emt 0:03:24]} f5 {[%emt 0:02:43]} 16. Rab1 {[%emt 0:01:52]} Rae8 {[%emt 0:02:19]} 17. gxf5 exf5 18. Qe2 {[%emt 0:16:13]} Kh8 {[%emt 0:01:28]} 19. Qd3 {[%emt 0:01:26]} Qc8 {[%emt 0:00:46]} 20. c3 {[%emt 0:03:10]} d5 {[%emt 0:02:02]} 21. f4 {[%emt 0:03:34]} g4 {[%emt 0:00:03]} 22. g3 {[%emt 0:05:26]} h5 {[%emt 0:00:56]} 23. Kf2 {[%emt 0:00:27]} Kh7 {[%emt 0:00:02]} 24. Nb3 {[%emt 0:02:23]} Kg6 {[%emt 0:00:18]} 25. Nc5 {[%emt 0:00:47]} Rh8 {[%emt 0:00:09]} 26. Qa6 {[%emt 0:01:28]} Qxa6 {[%emt 0:00:19]} 27. Nxa6 {[%emt 0:00:12]} Re7 {[%emt 0:00:21]} 1/2-1/2

[Event "VII Lorca Open 2018"]
[Site "Lorca"]
[Date "2018.12.29"]
[Round "7"]
[White "Ajay Karthikeyan"]
[Black "Ramiro Ovejero, Juan Luis"]
[Result "1/2-1/2"]
[ECO "D02"]
[WhiteElo "2143"]
[BlackElo "2358"]
[Annotator "NA"]
[PlyCount "57"]
[EventDate "2018.12.26"]
[EventType "swiss"]
[EventCountry "ESP"]
[SourceTitle "playchess.com"]
[Source "ChessBase"]
[SourceQuality "1"]
[TimeControl "5400+30"]

1. d4 {[%emt 0:01:22]} d5 {[%emt 0:00:22]} 2. Bf4 {[%emt 0:01:04]} Nf6 {[%emt 0:00:14]} 3. e3 {[%emt 0:00:05]} e6 {[%emt 0:00:13]} 4. Nf3 {[%emt 0:00:07]} Bd6 {[%emt 0:00:32]} 5. Bg3 {[%emt 0:00:10]} c5 {[%emt 0:00:14]} 6. c3 {[%emt 0:00:04]} O-O {[%emt 0:00:21]} 7. Nbd2 {[%emt 0:00:15]} Nc6 {[%emt 0:00:13]} 8. Bd3 {[%emt 0:00:34]} Qe7 {[%emt 0:01:43]} 9. Ne5 {[%emt 0:00:15]} Nd7 {[%emt 0:00:11]} 10. Nxd7 {[%emt 0:00:22]} Qxd7 {[%emt 0:00:19]} 11. dxc5 {[%emt 0:01:06]} Bxc5 {[%emt 0:01:17]} 12. O-O {[%emt 0:03:44]} Bd6 {[%emt 0:05:09]} 13. Nf3 {[%emt 0:18:46]} Bxg3 {[%emt 0:06:37]} 14. hxg3 {[%emt 0:00:05]} Qe7 {[%emt 0:07:39]} 15. e4 {[%emt 0:03:04]} dxe4 16. Bxe4 {[%emt 0:00:05]} Bd7 17. Qe2 {[%emt 0:04:48]} Rfd8 {[%emt 0:09:03]} 18. Rfd1 {[%emt 0:02:25]} Be8 {[%emt 0:00:17]} 19. Qe3 {[%emt 0:10:07]} h6 {[%emt 0:04:33]} 20. Nd4 {[%emt 0:05:27]} Nxd4 {[%emt 0:05:08]} 21. Rxd4 {[%emt 0:01:04]} Rxd4 {[%emt 0:00:45]} 22. Qxd4 {[%emt 0:00:27]} Qc7 {[%emt 0:04:52]} 23. Rd1 {[%emt 0:02:22]} Bc6 {[%emt 0:00:45]} 24. Qc5 {[%emt 0:05:17]} Rd8 {[%emt 0:03:22]} 25. Rxd8+ {[%emt 0:00:38]} Qxd8 {[%emt 0:00:03]} 26. Bxc6 {[%emt 0:00:16]} bxc6 {[%emt 0:00:04]} 27. Qxa7 {[%emt 0:04:38]} Qd1+ {[%emt 0:00:06]} 28. Kh2 {[%emt 0:00:01]} Qh5+ {[%emt 0:00:05]} 29. Kg1 {[%emt 0:00:03]} 1/2-1/2

[Event "VII Lorca Open 2018"]
[Site "Lorca"]
[Date "2018.12.29"]
[Round "7"]
[White "Korneev Leskova, Svyatoslav"]
[Black "Pogorelov, Ruslan"]
[Result "1-0"]
[ECO "A37"]
[WhiteElo "2134"]
[BlackElo "2354"]
[Annotator "NA"]
[PlyCount "60"]
[EventDate "2018.12.26"]
[EventType "swiss"]
[EventCountry "ESP"]
[SourceTitle "playchess.com"]
[Source "ChessBase"]
[SourceQuality "1"]
[TimeControl "5400+30"]

1. c4 {[%emt 0:00:00]} c5 {[%emt 0:00:00]} 2. Nc3 {[%emt 0:00:00]} g6 {[%emt 0:00:00]} 3. g3 {[%emt 0:00:00]} Bg7 {[%emt 0:00:07]} 4. Bg2 {[%emt 0:00:07]} Nc6 {[%emt 0:00:11]} 5. Nf3 {[%emt 0:00:09]} b6 {[%emt 0:00:33] A37: Symmetrical English vs ...g6: 4 Bg2 Bg7 5 Nf3} (5... e6 6. d4 cxd4 7. Nb5 d5 8. cxd5 Qa5+ 9. Nd2 exd5 10. Nd6+ Kf8 11. Nxc8 Rxc8 12. O-O Nge7 13. Nf3 h6 14. h4 Bf6 15. Bd2 Qb6 16. b4 Kg7 17. Rb1 {½-½ (40) Grischuk,A (2766)-So,W (2778) Paris 2018}) 6. d3 {[%emt 0:00:37]} Bb7 {[%emt 0:01:07]} 7. e4 {[%emt 0:00:25]} d6 {[%emt 0:01:26]} 8. O-O {[%emt 0:00:22]} Qd7 {[%emt 0:01:36]} 9. Be3 {[%emt 0:00:16]} Nd4 {[%emt 0:03:14]} 10. Bxd4 {[%emt 0:01:34]} cxd4 {[%emt 0:01:29]} 11. Nb5 {[%emt 0:00:20]} e5 {[%emt 0:01:13]} 12. Qa4 {[%emt 0:00:05]} Ke7 {[%emt 0:04:35]} 13. Qb4 $146 {[%emt 0:02:14]} a6 {[%emt 0:01:27]} 14. Na3 {[%emt 0:01:33]} Qc7 {[%emt 0:01:02]} 15. Nc2 {[%emt 0:01:48]} Qc5 {[%emt 0:02:40]} 16. Qe1 {[%emt 0:02:38]} Nf6 {[%emt 0:02:37]} 17. Nd2 {[%emt 0:12:41]} Rhe8 {[%emt 0:06:17]} 18. Qe2 {[%emt 0:03:44]} Kf8 {[%emt 0:02:10]} 19. Bh3 {[%emt 0:05:32]} b5 {[%emt 0:00:51]} 20. Nb3 {[%emt 0:02:21]} Qb6 {[%emt 0:00:41]} 21. cxb5 {[%emt 0:00:15]} d5 {[%emt 0:13:59]} 22. bxa6 {[%emt 0:06:29]} Rxa6 {[%emt 0:00:40]} 23. exd5 {[%emt 0:03:23]} Bxd5 {[%emt 0:00:36]} 24. Qd2 {[%emt 0:00:35]} Rb8 {[%emt 0:01:39]} 25. Rfb1 {[%emt 0:02:59]} Ra4 {[%emt 0:03:25]} 26. Bg2 {[%emt 0:07:11]} e4 {[%emt 0:01:13]} 27. dxe4 {[%emt 0:10:50]} Nxe4 {[%emt 0:00:15]} 28. Qd3 {[%emt 0:00:37]} f5 {[%emt 0:01:05]} 29. Qd2 {[%emt 0:35:45]} Qb5 $2 {[%emt 0:48:22]} (29... Nxd2 $19 30. Bxd5 Nxb1 31. Rxb1 Rd8) 30. Qd3 $2 (30. Bxe4 $11 Bxe4 31. Ncxd4) 30... Qb6 $11 (30... Qxd3 $19 31. f3 Qxc2 32. fxe4 Bxb3 33. axb3 Rxb3 34. Rxa4 Qxb1+ 35. Bf1 Rf3 36. Ra8+ Kf7 37. Ra7+ Kg8 38. Ra8+ Bf8 39. Rxf8+ Kxf8 40. h3 Qxf1+ 41. Kh2 Rf2#) 1-0

[Event "VII Lorca Open 2018"]
[Site "Lorca"]
[Date "2018.12.29"]
[Round "7"]
[White "Cebrian Flores, Juan Antonio"]
[Black "Guerra Rivera, Salvador"]
[Result "0-1"]
[ECO "E04"]
[WhiteElo "2015"]
[BlackElo "2343"]
[Annotator "ChessBase"]
[PlyCount "36"]
[EventDate "2018.12.26"]
[EventType "swiss"]
[EventCountry "ESP"]
[SourceTitle "playchess.com"]
[Source "ChessBase"]
[SourceQuality "1"]
[TimeControl "5400+30"]

1. d4 {[%emt 0:01:41]} e6 {[%emt 0:00:00]} 2. c4 {[%emt 0:00:46]} Nf6 {[%emt 0:00:03]} 3. g3 {[%emt 0:00:50]} d5 {[%emt 0:00:11]} 4. Nf3 {[%emt 0:00:18]} dxc4 {[%emt 0:00:35]} 5. Bg2 {[%emt 0:01:04]} Bd7 {[%emt 0:00:37]} 6. Ne5 {[%emt 0:08:24]} Bc6 {[%emt 0:00:18]} 7. Nxc6 {[%emt 0:00:12]} Nxc6 {[%emt 0:00:06]} 8. Bxc6+ {[%emt 0:00:22]} bxc6 {[%emt 0:00:05]} 9. O-O {[%emt 0:03:37]} c5 {[%emt 0:07:09]} 10. Qa4+ {[%emt 0:17:24]} Qd7 {[%emt 0:00:18]} 11. Qxd7+ Nxd7 {[%emt 0:00:53]} 12. dxc5 {[%emt 0:10:31]} Bxc5 {[%emt 0:01:30]} 13. a4 {[%emt 0:07:08]} a5 {[%emt 0:07:37]} 14. Bd2 {[%emt 0:03:54]} O-O {[%emt 0:06:40]} 15. Rc1 {[%emt 0:05:13]} Nb6 {[%emt 0:00:50]} 16. Na3 {[%emt 0:03:22]} Bxa3 17. Rxa3 {[%emt 0:00:25]} Rfd8 {[%emt 0:10:35]} 18. Be3 {[%emt 0:03:57]} Rd6 {[%emt 0:14:28]} 0-1

[Event "VII Lorca Open 2018"]
[Site "Lorca"]
[Date "2018.12.30"]
[Round "8"]
[White "Ibarra Jerez, Jose Carlos"]
[Black "Guerra Rivera, Salvador"]
[Result "1/2-1/2"]
[ECO "A13"]
[WhiteElo "2558"]
[BlackElo "2343"]
[Annotator "ChessBase"]
[PlyCount "68"]
[EventDate "2018.12.26"]
[EventType "swiss"]
[EventCountry "ESP"]
[SourceTitle "playchess.com"]
[Source "ChessBase"]
[SourceQuality "1"]
[TimeControl "5400+30"]

1. g3 {[%emt 0:00:00]} Nf6 {[%emt 0:03:40]} 2. Bg2 {[%emt 0:01:27]} d5 {[%emt 0:02:54]} 3. c4 {[%emt 0:04:58]} e6 {[%emt 0:00:59]} 4. Nf3 {[%emt 0:02:36]} dxc4 {[%emt 0:01:04]} 5. Qa4+ {[%emt 0:04:21]} Nbd7 {[%emt 0:01:57]} 6. Qxc4 {[%emt 0:03:40]} a6 {[%emt 0:01:19]} 7. Qc2 {[%emt 0:03:43]} Rb8 {[%emt 0:06:22]} 8. d3 {[%emt 0:05:49]} b5 {[%emt 0:08:15]} 9. O-O {[%emt 0:09:47]} Bb7 {[%emt 0:01:04]} 10. b3 {[%emt 0:08:25]} c5 {[%emt 0:02:38]} 11. Bb2 {[%emt 0:01:31]} Be7 {[%emt 0:00:59]} 12. Nbd2 {[%emt 0:00:29]} O-O {[%emt 0:01:13]} 13. Rac1 {[%emt 0:01:43]} Rc8 {[%emt 0:05:43]} 14. Qb1 {[%emt 0:04:09]} Qb6 {[%emt 0:01:25]} 15. h3 {[%emt 0:02:04]} Rfd8 {[%emt 0:03:00]} 16. Rfe1 {[%emt 0:01:45]} Nf8 {[%emt 0:10:13]} 17. a3 {[%emt 0:03:57]} Ng6 {[%emt 0:02:27]} 18. e3 {[%emt 0:09:39]} Qd6 {[%emt 0:10:05]} 19. Bf1 {[%emt 0:00:24]} e5 {[%emt 0:04:09]} 20. e4 {[%emt 0:02:11]} h5 {[%emt 0:04:23]} 21. Qa1 {[%emt 0:02:15]} Nd7 {[%emt 0:02:21]} 22. h4 {[%emt 0:00:45]} Bf6 {[%emt 0:01:52]} 23. Bc3 {[%emt 0:01:52]} Ne7 {[%emt 0:03:05]} 24. b4 {[%emt 0:06:50]} Nc6 {[%emt 0:01:14]} 25. Rb1 {[%emt 0:00:30]} cxb4 {[%emt 0:01:56]} 26. axb4 {[%emt 0:00:14]} Nb6 {[%emt 0:00:16]} 27. Bb2 {[%emt 0:05:46]} Na4 {[%emt 0:03:11]} 28. Ba3 {[%emt 0:00:11]} Rc7 {[%emt 0:03:30]} 29. Nb3 {[%emt 0:02:18]} Bc8 {[%emt 0:00:58]} 30. Rec1 {[%emt 0:01:32]} Bg4 {[%emt 0:01:12]} 31. Nh2 {[%emt 0:01:58]} Be6 {[%emt 0:01:20]} 32. Nf3 {[%emt 0:00:17]} Bg4 {[%emt 0:00:12]} 33. Nh2 {[%emt 0:00:42]} Be6 {[%emt 0:00:04]} 34. Nf3 {[%emt 0:00:19]} Bg4 {[%emt 0:00:12]} 1/2-1/2

[Event "VII Lorca Open 2018"]
[Site "Lorca"]
[Date "2018.12.30"]
[Round "8"]
[White "Grigoryan, Karen H."]
[Black "Gomez Ledo, Roberto Carlos"]
[Result "1-0"]
[ECO "B07"]
[WhiteElo "2557"]
[BlackElo "2448"]
[Annotator "ChessBase"]
[PlyCount "73"]
[EventDate "2018.12.26"]
[EventType "swiss"]
[EventCountry "ESP"]
[SourceTitle "playchess.com"]
[Source "ChessBase"]
[SourceQuality "1"]
[TimeControl "5400+30"]

1. e4 {[%emt 0:00:00]} d6 {[%emt 0:00:14]} 2. d4 {[%emt 0:00:00]} Nf6 {[%emt 0:00:08]} 3. f3 {[%emt 0:00:16]} e5 {[%emt 0:00:37]} 4. Ne2 {[%emt 0:02:13]} Be7 {[%emt 0:02:38]} 5. c4 {[%emt 0:02:51]} O-O {[%emt 0:07:58]} 6. Be3 {[%emt 0:00:44]} c6 {[%emt 0:05:51]} 7. Nbc3 {[%emt 0:07:18]} a6 {[%emt 0:02:00]} 8. d5 {[%emt 0:00:57]} b5 {[%emt 0:07:34]} 9. Nc1 {[%emt 0:04:00]} b4 {[%emt 0:03:00]} 10. N3e2 {[%emt 0:00:30]} Ne8 {[%emt 0:11:33]} 11. Qd2 {[%emt 0:01:36]} a5 {[%emt 0:04:43]} 12. a3 {[%emt 0:02:10]} c5 {[%emt 0:02:37]} 13. axb4 {[%emt 0:02:02]} cxb4 {[%emt 0:00:10]} 14. Nd3 {[%emt 0:02:52]} Ba6 {[%emt 0:03:55]} 15. b3 {[%emt 0:05:06]} Nd7 {[%emt 0:00:36]} 16. g3 {[%emt 0:01:09]} f5 {[%emt 0:05:19]} 17. exf5 {[%emt 0:01:06]} Rxf5 {[%emt 0:00:08]} 18. Bg2 {[%emt 0:01:16]} Bg5 {[%emt 0:19:36]} 19. Bh3 {[%emt 0:03:47]} Bxe3 {[%emt 0:03:00]} 20. Qxe3 {[%emt 0:00:23]} g6 {[%emt 0:01:05]} 21. Bxf5 {[%emt 0:00:44]} gxf5 {[%emt 0:00:01]} 22. O-O {[%emt 0:00:49]} Ng7 {[%emt 0:00:48]} 23. f4 {[%emt 0:02:16]} Qc7 {[%emt 0:04:59]} 24. fxe5 {[%emt 0:00:36]} dxe5 {[%emt 0:00:23]} 25. Ra2 {[%emt 0:04:27]} Bb7 {[%emt 0:04:22]} 26. Rfa1 {[%emt 0:00:55]} Re8 {[%emt 0:01:44]} 27. Rxa5 {[%emt 0:02:47]} f4 {[%emt 0:01:07]} 28. gxf4 {[%emt 0:00:13]} exf4 {[%emt 0:00:48]} 29. Qf2 {[%emt 0:00:20]} Nf6 {[%emt 0:03:05]} 30. Nexf4 {[%emt 0:01:12]} Ne4 {[%emt 0:02:01]} 31. Qg2 {[%emt 0:00:19]} Kh8 {[%emt 0:01:49]} 32. Kh1 {[%emt 0:00:15]} Nf5 {[%emt 0:01:30]} 33. Rb5 {[%emt 0:02:55]} Nc3 {[%emt 0:00:40]} 34. Rxb4 {[%emt 0:00:32]} Ba8 {[%emt 0:00:23]} 35. Qb2 {[%emt 0:04:18]} Qg7 {[%emt 0:00:27]} 36. Rc1 {[%emt 0:00:23]} Nd4 {[%emt 0:00:36]} 37. Qxc3 {[%emt 0:00:51]} 1-0

[Event "VII Lorca Open 2018"]
[Site "Lorca"]
[Date "2018.12.30"]
[Round "8"]
[White "Nasuta, Grzegorz"]
[Black "Silva Lucena, Cristian"]
[Result "1/2-1/2"]
[ECO "C47"]
[WhiteElo "2530"]
[BlackElo "2197"]
[Annotator "ChessBase"]
[PlyCount "69"]
[EventDate "2018.12.26"]
[EventType "swiss"]
[EventCountry "ESP"]
[SourceTitle "playchess.com"]
[Source "ChessBase"]
[SourceQuality "1"]
[TimeControl "5400+30"]

1. e4 {[%emt 0:00:00]} e5 {[%emt 0:03:56]} 2. Nc3 {[%emt 0:00:00]} Nf6 {[%emt 0:00:39]} 3. g3 {[%emt 0:00:00]} d5 {[%emt 0:00:30]} 4. exd5 {[%emt 0:00:00]} Nxd5 {[%emt 0:00:05]} 5. Bg2 {[%emt 0:00:00]} Nxc3 {[%emt 0:00:33]} 6. bxc3 {[%emt 0:00:07]} Bc5 {[%emt 0:00:22]} 7. Nf3 {[%emt 0:07:54]} Nc6 {[%emt 0:00:26]} 8. O-O {[%emt 0:00:07]} O-O {[%emt 0:00:25]} 9. Re1 {[%emt 0:00:05]} Re8 {[%emt 0:00:53]} 10. d4 {[%emt 0:01:00]} exd4 {[%emt 0:05:52]} 11. Rxe8+ {[%emt 0:00:08]} Qxe8 {[%emt 0:00:06]} 12. cxd4 {[%emt 0:00:05]} Bd6 {[%emt 0:02:00]} 13. Bb2 {[%emt 0:05:16]} Bg4 {[%emt 0:04:52]} 14. Qd2 {[%emt 0:07:19]} f6 {[%emt 0:12:16]} 15. Re1 {[%emt 0:19:53]} Qh5 {[%emt 0:08:27]} 16. Qe3 {[%emt 0:04:09]} Qb5 {[%emt 0:04:33]} 17. Ba3 {[%emt 0:24:32]} Bxa3 {[%emt 0:13:26]} 18. Qxa3 {[%emt 0:00:09]} Bxf3 {[%emt 0:00:10]} 19. Qxf3 {[%emt 0:00:12]} Nxd4 {[%emt 0:00:07]} 20. Qg4 {[%emt 0:09:09]} Rd8 {[%emt 0:09:54]} 21. Re7 {[%emt 0:03:11]} g6 {[%emt 0:00:03]} 22. c3 {[%emt 0:06:58]} f5 {[%emt 0:04:51]} 23. Qd1 {[%emt 0:03:14]} Nc6 {[%emt 0:01:12]} 24. Rd7 {[%emt 0:00:07]} Rxd7 {[%emt 0:00:10]} 25. Qxd7 {[%emt 0:00:02]} Qb1+ {[%emt 0:00:10]} 26. Bf1 {[%emt 0:00:07]} Qxa2 {[%emt 0:00:08]} 27. Qc8+ {[%emt 0:02:16]} Kg7 {[%emt 0:01:02]} 28. Qxb7 {[%emt 0:02:18]} Qe6 {[%emt 0:00:14]} 29. Qxc7+ {[%emt 0:00:08]} Kh6 {[%emt 0:00:09]} 30. h4 {[%emt 0:05:00]} a5 {[%emt 0:00:51]} 31. Qf4+ {[%emt 0:00:17]} Kg7 {[%emt 0:00:12]} 32. h5 {[%emt 0:00:23]} Ne5 {[%emt 0:02:56]} 33. Qd4 {[%emt 0:01:10]} gxh5 {[%emt 0:00:53]} 34. f4 {[%emt 0:00:13]} h4 {[%emt 0:00:59]} 35. gxh4 {[%emt 0:00:52]} 1/2-1/2

[Event "VII Lorca Open 2018"]
[Site "Lorca"]
[Date "2018.12.30"]
[Round "8"]
[White "Gascon Del Nogal, Jose Rafael"]
[Black "Espineira Gonzalez, Diego"]
[Result "1/2-1/2"]
[ECO "D61"]
[WhiteElo "2484"]
[BlackElo "2299"]
[Annotator "ChessBase"]
[PlyCount "110"]
[EventDate "2018.12.26"]
[EventType "swiss"]
[EventCountry "ESP"]
[SourceTitle "playchess.com"]
[Source "ChessBase"]
[SourceQuality "1"]
[TimeControl "5400+30"]

1. d4 {[%emt 0:00:00]} d5 {[%emt 0:07:57]} 2. c4 {[%emt 0:00:00]} e6 {[%emt 0:00:05]} 3. Nc3 {[%emt 0:00:02]} Nf6 {[%emt 0:00:17]} 4. Bg5 {[%emt 0:00:08]} Be7 {[%emt 0:00:51]} 5. e3 {[%emt 0:00:06]} O-O {[%emt 0:00:40]} 6. Nf3 {[%emt 0:00:12]} h6 {[%emt 0:01:03]} 7. Bh4 {[%emt 0:06:56]} c6 {[%emt 0:00:28]} 8. Qc2 {[%emt 0:00:12]} Nbd7 {[%emt 0:00:35]} 9. O-O-O {[%emt 0:02:13]} a6 {[%emt 0:04:05]} 10. Rg1 {[%emt 0:01:05]} dxc4 {[%emt 0:03:53]} 11. g4 {[%emt 0:00:52]} Nh7 {[%emt 0:05:58]} 12. Bxe7 {[%emt 0:01:21]} Qxe7 {[%emt 0:00:05]} 13. Bxc4 {[%emt 0:03:39]} Ng5 {[%emt 0:17:35]} 14. Nxg5 {[%emt 0:01:39]} hxg5 {[%emt 0:00:15]} 15. h4 {[%emt 0:00:08]} gxh4 {[%emt 0:01:59]} 16. g5 {[%emt 0:00:22]} g6 {[%emt 0:00:04]} 17. f4 {[%emt 0:00:15]} Kg7 {[%emt 0:02:37]} 18. Rh1 {[%emt 0:01:26]} Rh8 {[%emt 0:00:24]} 19. Qf2 {[%emt 0:00:12]} b5 {[%emt 0:00:53]} 20. Rxh4 {[%emt 0:00:35]} Bb7 {[%emt 0:00:20]} 21. Rdh1 {[%emt 0:18:02]} bxc4 {[%emt 0:04:28]} 22. Ne4 {[%emt 0:00:09]} c5 {[%emt 0:01:36]} 23. Qh2 {[%emt 0:00:17]} Qd8 {[%emt 0:00:47]} 24. Rh7+ {[%emt 0:01:50]} Rxh7 {[%emt 0:00:04]} 25. Qxh7+ {[%emt 0:00:06]} Kf8 {[%emt 0:00:03]} 26. Nd6 {[%emt 0:00:20]} Ke7 {[%emt 0:00:24]} 27. Nxf7 {[%emt 0:02:06]} Qe8 {[%emt 0:00:56]} 28. Ne5+ {[%emt 0:00:37]} Kd8 {[%emt 0:02:31]} 29. Rd1 {[%emt 0:17:01]} Qe7 {[%emt 0:08:18]} 30. Qxg6 {[%emt 0:10:21]} Nxe5 {[%emt 0:02:17]} 31. dxe5+ {[%emt 0:03:01]} Kc7 {[%emt 0:00:55]} 32. Qc2 {[%emt 0:03:57]} Rd8 {[%emt 0:10:02]} 33. Rxd8 {[%emt 0:00:41]} Qxd8 {[%emt 0:00:04]} 34. Qxc4 {[%emt 0:00:27]} Qd5 {[%emt 0:01:47]} 35. Qxd5 {[%emt 0:00:18]} Bxd5 {[%emt 0:00:05]} 36. g6 {[%emt 0:00:30]} Be4 {[%emt 0:00:04]} 37. g7 {[%emt 0:00:02]} Bh7 {[%emt 0:00:05]} 38. Kd2 {[%emt 0:00:33]} Kc6 {[%emt 0:01:24]} 39. e4 {[%emt 0:01:22]} Kd7 {[%emt 0:01:27]} 40. Kc3 {[%emt 0:09:32]} Ke7 {[%emt 0:00:46]} 41. f5 {[%emt 0:02:11]} exf5 {[%emt 0:01:12]} 42. exf5 {[%emt 0:00:14]} Kf7 {[%emt 0:00:11]} 43. f6 {[%emt 0:00:07]} Ke6 {[%emt 0:00:21]} 44. Kc4 {[%emt 0:00:13]} Bg8 {[%emt 0:00:07]} 45. Kxc5 {[%emt 0:00:05]} Kxe5 {[%emt 0:01:04]} 46. a4 {[%emt 0:00:08]} Kxf6 {[%emt 0:00:24]} 47. Kb6 {[%emt 0:00:06]} Bc4 {[%emt 0:01:20]} 48. g8=Q {[%emt 0:00:06]} Bxg8 {[%emt 0:00:03]} 49. Kxa6 {[%emt 0:00:04]} Bb3 {[%emt 0:03:45]} 50. a5 {[%emt 0:00:04]} Ke6 {[%emt 0:00:06]} 51. Kb7 {[%emt 0:03:22]} Kd5 {[%emt 0:00:38]} 52. Kb6 {[%emt 0:00:11]} Kc4 {[%emt 0:00:47]} 53. a6 {[%emt 0:00:22]} Bd1 {[%emt 0:00:17]} 54. a7 {[%emt 0:00:32]} Bf3 {[%emt 0:00:06]} 55. b4 {[%emt 0:00:07]} Kxb4 {[%emt 0:00:07]} 1/2-1/2